Cogmind - Beta 11 X8 @@@ ROGUE MODE // 2022.01.05 @ 14:43:45 // Winter2019/RPGLIKE Player: Minty Result: Destroyed by as-75408 with Assembled Maul Performance ------------- Evolutions (0) 0 Regions Visited (4) 800 Robots Destroyed (21) 105 Value Destroyed (429) 429 Prototype IDs (0) 0 Alien Tech Used (0) 0 Bonus (-343) -343 TOTAL SCORE: 991 Bonus ------- Follower Combat Kills 14 Friendly Fire -357 Cogmind --------- Core Integrity 0/1000 Matter 116/300 Energy 300/300 System Corruption 0% Temperature Cool (0) Movement Walking (120) Location -9/Mines Parts ------- > --- POWER (1) -------- Ion Engine > --- PROPULSION (2) --- Aluminum Leg Aluminum Leg > --- UTILITY (2) ------ Improved Heat Sink > --- WEAPON (3) ------- Particle Gun Assault Rifle Rocket Launcher > --- INVENTORY (3) ---- EM Pulse Gun Makeshift Hammer Peak State ------------ > --- POWER ------------ Ion Engine > --- PROPULSION ------- Aluminum Leg Aluminum Leg > --- UTILITY ---------- Improved Heat Sink Power Shielding > --- WEAPON ----------- Particle Gun Assault Rifle Rocket Launcher > --- INVENTORY -------- EM Pulse Gun Makeshift Hammer [Rating: 12] Favorites ----------- Power Ion Engine Engine Ion Engine Propulsion Aluminum Leg Leg Aluminum Leg Utility Improved Heat Sink Device Improved Heat Sink Protection Power Shielding Weapon Assault Rifle Energy Gun Particle Gun Ballistic Gun Assault Rifle Launcher Rocket Launcher Build | -11 -10 -10 -10 -9 ------- Run | Scr Mat Min Exi Min Slots Evolved 4 | 3 . . . 1 Power . | . . . . . Propulsion 1 | 1 . . . . Utility 1 | 1 . . . . Weapon 2 | 1 . . . 1 Parts Attached 12 | 2 6 3 . 1 Power 2 | . 1 1 . . Engine 2 | . 1 1 . . Core . | . . . . . Reactor . | . . . . . Propulsion 3 | 1 1 1 . . Treads . | . . . . . Leg 3 | 1 1 1 . . Wheel . | . . . . . Hover . | . . . . . Flight . | . . . . . Utility 3 | . 2 1 . . Device 2 | . 2 . . . Storage . | . . . . . Processor . | . . . . . Hackware . | . . . . . Protection 1 | . . 1 . . Artifact . | . . . . . Weapon 4 | 1 2 . . 1 Energy Gun 2 | 1 1 . . . Energy Cannon . | . . . . . Ballistic Gun 1 | . 1 . . . Ballistic Cannon . | . . . . . Launcher 1 | . . . . 1 Special Weapon . | . . . . . Impact Weapon . | . . . . . Slashing Weapon . | . . . . . Piercing Weapon . | . . . . . Special Melee Weapon . | . . . . . Unidentified Prototypes . | . . . . . Parts Lost 1 | . . . . 1 Power . | . . . . . Propulsion . | . . . . . Utility 1 | . . . . 1 Weapon . | . . . . . Highest Loss Streak 1 | . . . . 1 Average Slot Usage (%) 95 | . 79 100 100 98 Engine 13 | . 14 14 14 12 Leg 27 | . 28 28 28 25 Device 18 | . 8 26 14 12 Protection 4 | . . 1 14 10 Energy Gun 13 | . 14 14 14 12 Ballistic Gun 13 | . 14 14 14 12 Naked Turns . | . . . . . Heaviest Build 16 | 6 12 12 12 16 Greatest Support 25 | 25 25 25 25 25 Greatest Overweight (x) . | . . . . . Average Overweight (x) . | . . . . . Largest Inventory Capacity 3 | 1 1 3 3 3 Average Capacity 2 | . 1 2 3 3 Most Carried 3 | 1 1 3 3 3 Average Carried 2 | . . 2 3 2 Final Capacity 3 | 1 1 3 3 3 Final Carried 3 | 1 1 3 3 2 Class Distribution -------------------- 78% | Scavenger-Mutant 16% | Mutant 4% | Scavenger-Gunner Dominant Class ---------------- Mutant | -10/Materials Scavenger-Mutant | -10/Mines Scavenger-Mutant | -10/Exiles Scavenger-Gunner | -9/Mines Resources | -11 -10 -10 -10 -9 ----------- Run | Scr Mat Min Exi Min Matter Collected 472 | 229 149 94 . . Remotely . | . . . . . Salvage Created 634 | 56 312 202 . 64 Parts 42 | 1 13 20 . 8 Haulers Intercepted . | . . . . . Recyclers Shooed 1 | . 1 . . . Parts Field Recycled . | . . . . . Retrieved Matter . | . . . . . Parts Self-Destructed . | . . . . . Prevented . | . . . . . Kills | -11 -10 -10 -10 -9 ------- Run | Scr Mat Min Exi Min Combat Hostiles Destroyed 28 | . 6 8 . 14 Guns 15 | . 6 8 . 1 AOE 13 | . . . . 13 Classes Destroyed 6 | 1 1 3 . 1 Worker 2 | . . 2 . . Tunneler 1 | . . 1 . . Recycler 1 | 1 . . . . Swarmer 7 | . . 6 . 1 Grunt 10 | . 6 2 . 2 Assembled 13 | . . . . 13 Best Kill Streak 13 | 1 3 4 . 13 Combat Bots Only 13 | . 3 3 . 13 Max Kills in Single Turn 4 | 1 2 2 . 4 Gunslinging 1 | . . 1 . . Exploded 4 | . . . . 4 Melee . | . . . . . Uniques/NPCs Destroyed . | . . . . . Combat | -11 -10 -10 -10 -9 -------- Run | Scr Mat Min Exi Min Damage Taken 1460 | . 598 111 . 751 Core 1138 | . 478 85 . 575 Absorbed by Shields . | . . . . . Redirected to Core 994 | . 404 75 . 515 Core Remaining (%) 100 | 100 . . . . Volleys Fired 74 | 3 36 22 . 13 Largest 3 | 2 2 2 . 3 Hottest 118 | 60 85 85 . 118 Shots Fired 154 | 6 67 44 . 37 Gun 143 | 6 67 44 . 26 Cannon . | . . . . . Launcher 11 | . . . . 11 Special . | . . . . . Kinetic 74 | 3 36 22 . 13 Thermal 69 | 3 31 22 . 13 Explosive 11 | . . . . 11 Electromagnetic . | . . . . . Robot Hit Streak 13 | 4 13 6 . 2 Robot Miss Streak 6 | 2 3 2 . 6 Penetration Max . | . . . . . Secondary Targets 4 | . 1 3 . . Max Gunslinging Chain 1 | . 1 1 . . Shots Hit Robots 90 | 4 45 32 . 9 Core Hits 61 | 2 15 15 . 29 Critical Kills . | . . . . . Critical Parts Destroyed . | . . . . . Critical Strikes 3 | . 1 2 . . Burn 3 | . 1 2 . . Melee Attacks . | . . . . . Impact . | . . . . . Slashing . | . . . . . Piercing . | . . . . . Sneak Attacks . | . . . . . Combat Hostiles . | . . . . . Follow-up Attacks . | . . . . . Damage Inflicted 2413 | 49 659 458 . 1247 Guns 1328 | 49 652 458 . 169 Cannons . | . . . . . Explosions 1078 | . . . . 1078 Melee . | . . . . . Ramming 7 | . 7 . . . Kinetic 588 | 27 301 190 . 70 Thermal 740 | 22 351 268 . 99 Explosive 1078 | . . . . 1078 Electromagnetic . | . . . . . Impact . | . . . . . Slashing . | . . . . . Piercing . | . . . . . Highest Corruption . | . . . . . Average Corruption . | . . . . . Corruption Purged . | . . . . . Overload Shots . | . . . . . Overflow Damage 49 | . . . . 49 Projectiles . | . . . . . Explosions 49 | . . . . 49 Melee . | . . . . . Knockbacks . | . . . . . Impact . | . . . . . Kinetic . | . . . . . Secondary . | . . . . . Self-Inflicted Damage 204 | . . . . 204 Shots 6 | . . . . 6 Rammed . | . . . . . Targets Rammed 1 | . 1 . . . Kicked 1 | . 1 . . . Crushed . | . . . . . Highest Temperature 23 | . 23 . . 7 Average Temperature 10 | . 10 . . 7 Received Heat Transfer 456 | . 360 36 . 60 Siege Activations . | . . . . . Robots Corrupted . | . . . . . Combat Hostiles . | . . . . . Parts Fried . | . . . . . Impact Corruptions . | . . . . . Robots Melted . | . . . . . Combat Hostiles . | . . . . . Parts Melted . | . . . . . Heat Transferred 1940 | 50 891 777 . 222 Parts Sabotaged . | . . . . . Parts Stolen . | . . . . . Parts Stripped . | . . . . . Power Chain Reactions . | . . . . . Missiles Intercepted . | . . . . . Alert | -11 -10 -10 -10 -9 ------- Run | Scr Mat Min Exi Min Peak Influence 283 | 5 176 283 . 96 Initial 68 | . 3 68 . . Average 131 | 2 86 168 . 73 Maximum Alert Level 1 | . . 1 . . Low Security (%) 73 | 100 100 54 . 100 Level 1 26 | . . 45 . . Level 2 . | . . . . . Level 3 . | . . . . . Level 4 . | . . . . . Level 5 . | . . . . . High Security . | . . . . . Max Security . | . . . . . Squads Dispatched . | . . . . . Investigation . | . . . . . Extermination . | . . . . . Reinforcement . | . . . . . Assault . | . . . . . Garrison . | . . . . . Intercept . | . . . . . Construction Impeded . | . . . . . Haulers Reinforced . | . . . . . Active Scanning Responses . | . . . . . Cargo Convoy Interrupts . | . . . . . Stealth | -11 -10 -10 -10 -9 --------- Run | Scr Mat Min Exi Min Distress Signals 1 | . 1 . . . Communications Jammed . | . . . . . Distress Signals . | . . . . . Times Spotted 44 | . 10 8 . 26 Peak Tracking Total 14 | . 4 3 . 14 Tactical Retreats 2 | . . . . 2 Traps | -11 -10 -10 -10 -9 ------- Run | Scr Mat Min Exi Min Traps Triggered . | . . . . . Indirectly . | . . . . . Trap Hack Attempts . | . . . . . Triggered . | . . . . . Disarmed . | . . . . . Reprogrammed . | . . . . . Reused . | . . . . . Traps Extracted . | . . . . . Installed . | . . . . . Triggered . | . . . . . Machines | -11 -10 -10 -10 -9 ---------- Run | Scr Mat Min Exi Min Machines Disabled 2 | . . . . 2 Max in Single Turn 1 | . . . . 1 Machines Sabotaged . | . . . . . Garrisons Compromised . | . . . . . Overloaded Fab Kills . | . . . . . Hacking | -11 -10 -10 -10 -9 --------- Run | Scr Mat Min Exi Min Machines Accessed 7 | . 3 . 4 . Terminals 2 | . 2 . . . Fabricators . | . . . . . Repair Stations 1 | . 1 . . . Recycling Units . | . . . . . Scanalyzers . | . . . . . Garrison Access . | . . . . . Total Hacks 12 | . 8 . 4 . Successful 10 | . 6 . 4 . Failed 2 | . 2 . . . Catastrophic . | . . . . . Database Lockouts . | . . . . . Manual 6 | . 6 . . . Terminals 6 | . 6 . . . Fabricators . | . . . . . Repair Stations 2 | . 2 . . . Recycling Units . | . . . . . Scanalyzers . | . . . . . Garrison Access . | . . . . . Terminal Hacks 5 | . 1 . 4 . Record 4 | . . . 4 . Zone Layout 1 | . 1 . . . Fabricator Hacks . | . . . . . Repair Station Hacks 2 | . 2 . . . Scan Component 1 | . 1 . . . Repair 1 | . 1 . . . Recycling Unit Hacks . | . . . . . Scanalyzer . | . . . . . Garrison Access Hacks . | . . . . . Unauthorized Hacks 3 | . 3 . . . Terminals 3 | . 3 . . . Assimilate 1 | . 1 . . . Botnet 2 | . 2 . . . Fabricators . | . . . . . Repair Stations . | . . . . . Recycling Units . | . . . . . Scanalyzers . | . . . . . Garrison Access . | . . . . . Data Cores Recovered . | . . . . . Used . | . . . . . Hacking Detections 2 | . 2 . . . Full Trace Events . | . . . . . Feedback Events . | . . . . . Feedback Blocked . | . . . . . Robot Schematics Acquired . | . . . . . Robots Built . | . . . . . Authchips . | . . . . . Time . | . . . . . Total Robot Build Rating . | . . . . . Part Schematics Acquired . | . . . . . Parts Built . | . . . . . Authchips . | . . . . . Time . | . . . . . Total Part Build Rating . | . . . . . Parts Repaired 1 | . 1 . . . Time 32 | . 32 . . . Parts Recycled . | . . . . . Recycled Matter . | . . . . . Retrieved Matter . | . . . . . Retrieved Components . | . . . . . Parts Scanalyzed . | . . . . . Part Schematics Acquired . | . . . . . Parts Damaged . | . . . . . Bothacking | -11 -10 -10 -10 -9 ------------ Run | Scr Mat Min Exi Min Used RIF Installer . | . . . . . Robots Hacked . | . . . . . Non-combat . | . . . . . Combat . | . . . . . Robot Hacks Applied . | . . . . . Relay Couplers Released . | . . . . . Robots Rewired . | . . . . . Allies Hacked . | . . . . . Hacks Repelled . | . . . . . Allies | -11 -10 -10 -10 -9 -------- Run | Scr Mat Min Exi Min Total Allies 4 | . 1 3 . . Largest Group 4 | . 1 4 4 4 Highest-Rated Group 50 | . 10 50 50 50 Highest-Rated Ally 16 | . 10 16 16 16 Total Orders . | . . . . . Ally Attacks 10 | . . . . 10 Total Damage 108 | . . . . 108 Kills 4 | . . . . 4 Allies Corrupted . | . . . . . Allies Melted . | . . . . . Intel | -11 -10 -10 -10 -9 ------- Run | Scr Mat Min Exi Min Robot Analysis Total . | . . . . . Derelict Logs Recovered 3 | . . 3 . . Drone Launches . | . . . . . Drone Recoveries . | . . . . . Exploration | -11 -10 -10 -10 -9 ------------- Run | Scr Mat Min Exi Min Turns Passed 1639 | 45 367 722 423 82 Spaces Moved 1122 | 27 179 531 352 33 Core . | . . . . . Treads . | . . . . . Legs 1122 | 27 179 531 352 33 Wheels . | . . . . . Hover . | . . . . . Flight . | . . . . . Fastest Speed 120 | 120 120 120 120 120 Average Speed 120 | 120 120 120 120 120 Slowest Speed 120 | 120 120 120 120 120 Overloaded Moves . | . . . . . Propulsion Burnouts . | . . . . . Robots Hopped . | . . . . . Cave-ins Triggered . | . . . . . Exploration Rate (%) 43 | 2 26 98 84 9 Regions Visited 4 Branch Regions 3 Pre-discovered Areas . | . . . . . Known Exits Taken . | . . . . . Unknown Exits Taken 4 | 1 1 1 1 . Scrap Searched 1 | . . 1 . . Spaces Dug . | . . . . . Terrain Destroyed 70 | . . . . 70 Melee . | . . . . . Projectile . | . . . . . AOE 70 | . . . . 70 Terrain Rammed . | . . . . . Walls Destroyed . | . . . . . Machines Disabled . | . . . . . Actions | -11 -10 -10 -10 -9 --------- Run | Scr Mat Min Exi Min Total 1269 | 32 265 573 352 47 Wait 39 | . 32 6 1 . Move 1118 | 26 178 530 351 33 Hop . | . . . . . Pick Up 8 | 1 3 4 . . Fast Attach 4 | 2 2 . . . Attach 1 | . . . . 1 Detach . | . . . . . Swap 7 | . 4 3 . . Drop 9 | . 5 4 . . Fire 74 | 3 36 22 . 13 Melee . | . . . . . Ram . | . . . . . Kick 1 | . 1 . . . Crush . | . . . . . Escape Stasis . | . . . . . Rewire . | . . . . . Trap . | . . . . . Miscellaneous 8 | . 4 4 . . Route ------- -11/Scrapyard -10/Materials -10/Mines (discovered 3 exits: [*Mat x2] / *Exi) -10/Exiles -9/Mines History --------- Turn | Location | Event 1 | -11/Scrapyard | Discovered new exit (range 2) 3 | -11/Scrapyard | Upgraded with Propulsion slot (x1) 3 | -11/Scrapyard | Upgraded with Utility slot (x1) 3 | -11/Scrapyard | Upgraded with Weapon slot (x1) 46 | -11/Scrapyard | Entered Materials 166 | -10/Materials | Repaired Particle Gun 276 | -10/Materials | Core integrity fell below 50% 344 | -10/Materials | Discovered new exit (range 12) 413 | -10/Materials | Entered Mines 413 | -10/Mines | Accompanied by 1 ally 445 | -10/Mines | Reached level 2 577 | -10/Mines | Build established: Scavenger-Mutant 610 | -10/Mines | Discovered new exit (range 3) 679 | -10/Mines | Learned Materials garrison access intel 697 | -10/Mines | Assisted by bots powering up and referring to "LRC-V3" 726 | -10/Mines | Discovered new exit (range 6) 732 | -10/Mines | Learned Materials security intel 740 | -10/Mines | Received a Rocket Launcher from a helpful Derelict 1064 | -10/Mines | A weapon hastily lodged in a ceiling crevice suddenly fell to the ground 1096 | -10/Mines | Learned 2 Materials zone layouts 1123 | -10/Mines | Deemed a non-threat by the Exiles lab entrance 1124 | -10/Mines | Discovered new exit (range 5) 1135 | -10/Mines | Entered Exiles 1135 | -10/Exiles | Found Exiles lab abandoned 1135 | -10/Exiles | Accompanied by 4 allies 1540 | -10/Exiles | Discovered new exit (range 16) 1558 | -10/Exiles | Entered Mines 1558 | -9/Mines | Accompanied by 4 allies 1559 | -9/Mines | Assembled infested the area 1566 | -9/Mines | Reached level 3 1567 | -9/Mines | Upgraded with Weapon slot (x1) 1590 | -9/Mines | Core integrity fell below 20% 1616 | -9/Mines | Destroyed 13 combat bots 1640 | -9/Mines | Destroyed by as-75408 with Assembled Maul Last Messages --------------- 01577_ as-22183 destroyed. 01577_ Knocked back. 01579_ Trooper 1a destroyed. 01579_ as-58547 destroyed. 01582_ as-25102 destroyed. 01582_ as-67844 destroyed. 01582_ as-88756 destroyed. 01585_ as-15395 destroyed. 01589_ Destroyed Asb. F-torch. 01589_ Destroyed Asb. Hover Unit. 01589_ as-97426 destroyed. 01589_ Destroyed Asb. Hover Unit. 01591_ The unstable cave ceiling collapses. 01595_ as-35815 destroyed. 01600_ Protomatter-11 decays. 01602_ The unstable cave ceiling collapses. 01631_ Power Shielding destroyed. 01634_ The unstable cave ceiling collapses. 01636_ Knocked back. 01638_ as-93006 destroyed. Map ----- +----------------------------------------------------+ | | | | | | | | | | | | | | | | | | | | | | | | | | | | | ?????????????????????????????????????????????????? | | ???????????###?#?????????????????????????????????? | | ??????????## # ##??????????????????????????????? | | ?????????## #??????????????????????????????? | | ????????## ###???????????????????????????? | | ??###??## #???????????????????????????? | | ??# " # ##??????????????????????????? | | ?# ##?????????????????????????? | | ?# # ##???????????????????????? | | ???????# a ##??????????????????????? | | ????????## = ##?????????????????????? | | ?????????### %= a@ #?????????????????????? | | ??????????## * %= ##?????????????????????? | | ???????????# ! ##r#####??????????????????? | | ???????????# ## ####?# #??????????????????? | | ???????????#########????##### #??????????????????? | | ????????????????????????????# #??????????????????? | | ????????????????????????????# #??????????????????? | | ????????????????????????????# #??????????????????? | | ????????????????????????????# #??????????????????? | | ????????????????????????????# #??????????????????? | | ????????????????????????????# ?????????????????? | | ????????????????????????????# ???????????????? | | ????????????????????????????##### % ?????????????? | | ??????????????????????????????????# ???????????? | | ???????????????????????????????????? ?????????? | | ????????????????????????????????????? ???????? | | ??????????????????????????????????????? ??????? | | ???????????????????????????????????????? ??????? | | ?????????????????????????????????????????? ??????? | | ?????????????????????????????????????????????????? | | ?????????????????????????????????????????????????? | | ?????????????????????????????????????????????????? | | ?????????????????????????????????????????????????? | | ?????????????????????????????????????????????????? | | ?????????????????????????????????????????????????? | +----------------------------------------------------+ Best States ------------- Heat Dissipation 67 Energy Generation 10 Energy Capacity 300 Matter Stores 300 Matter Capacity 300 Sight Range 17 Robot Scan Range 6 Terrain Scan Density 110 Power Shielding 33 Evasion (%) 55 Offensive Hacking 10 Defensive Hacking 5 Item Schematics ----------------- None Robot Schematics ------------------ None Fabricated ------------ Nothing Alien Tech Used ----------------- None Achievements -------------- None Challenges ------------ None RPGLIKE | -11 -10 -10 -10 -9 --------- Run | Scr Mat Min Exi Min Levels Raised 2 | . . 1 . 1 XP Earned 6436 | 3000 750 1450 200 1036 XP Spent 5965 | 2985 . 1250 . 1730 Upgrades 28 | 19 . 2 . 7 Propulsion Slot 1 | 1 . . . . Utility Slot 1 | 1 . . . . Weapon Slot 2 | 1 . . . 1 Core Integrity 8 | 6 . . . 2 Heat Dissipation 3 | 3 . . . . Energy Storage 1 | 1 . . . . Mass Support 1 | 1 . . . . Inventory Capacity 3 | 1 . 2 . . Sight Range 1 | 1 . . . . Sensor Range 3 | 2 . . . 1 Terrain Scan Density 1 | . . . . 1 Hack Attack % 2 | 1 . . . 1 Hack Defense % 1 | . . . . 1 Protomatter Created 130 | . 28 60 . 42 Integrity Restored 138 | . 84 54 . . Core 138 | . 84 54 . . Protomatter Decayed 53 | . . 42 . 11 Game ------ Seed SpikedFireFirepult Manual? 0 Play Time 00:12:44 Cumulative 352.4 hours Start 2022.01.05 @ 14:32:41 End 2022.01.05 @ 14:43:45 Sessions 1 Manual Loads 0 Difficulty Rogue Special Mode Winter2019/RPGLIKE Game No. 256 Rogue 82 Adventurer 61 Explorer 113 Win Type - Total 19 Types 17/0/1/0/0/0/0/1/0 Lore% 60 Gallery% 83 Achievement% 66 Wizard Run 0 Options --------- ASCII 0 Keyboard 1 Movement Numpad Keybinds 0 Fullscreen 2 Font 18/X11 Map View 76x50 Tactical HUD 1 Map Filters NONE Filters NONE Steam 1 RUN: 8b19ea38-528a-4e87-9a6b-063fa02d4218